fUSD/lending_fUSD_20241023
["ID","MTS","AMOUNT","RATE_DAILY","PERIOD"]
[340699711,1729695054701,-500.0,0.00050059,120]
[340699712,1729695054711,-500.0,0.00050059,120]
[340699713,1729695054722,-500.0,0.00050059,120]
[340699714,1729695054731,-523.47987159,0.00050059,120]
[340699715,1729695054744,-518.94817483,0.00050059,120]
[340699716,1729695054753,-500.0,0.00050059,2]
[340699717,1729695054762,-500.0,0.00050059,120]
[340699718,1729695054772,-500.0,0.00050059,120]
[340699719,1729695054784,-500.0,0.00050059,120]
[340699720,1729695054794,-500.0,0.00050059,120]
[340699721,1729695054805,-500.0,0.00050059,120]
[340699722,1729695054816,-537.46,0.00050059,120]
[340699723,1729695054827,-518.72511966,0.00050059,16]
[340699724,1729695054836,-429.13178362,0.00050059,120]
[340699725,1729695054846,-500.0,0.00050059,120]
[340699726,1729695054858,-500.0,0.00050059,120]
[340699727,1729695054868,-266.23219799,0.00050059,120]
[340699728,1729695054877,-500.0,0.00050059,120]
[340699729,1729695054888,-500.0,0.00050059,120]
[340699730,1729695054898,-500.0,0.00050059,120]
[340699731,1729695054909,-543.51304708,0.00050059,120]
[340699732,1729695054918,-662.0,0.00050059,120]
[340699733,1729695054928,-791.08,0.00050059,120]
[340699734,1729695054938,-500.0,0.00050059,120]
[340699735,1729695054948,-500.0,0.00050059,120]
[340699736,1729695054959,-500.0,0.00050059,120]
[340699737,1729695054969,-763.78,0.00050059,120]
[340699738,1729695054981,-500.0,0.00050059,120]
[340699739,1729695054991,-500.0,0.00050059,120]
[340699740,1729695055000,-500.0,0.00050059,120]
[340699741,1729695055009,-500.0,0.00050059,120]
[340699742,1729695055018,-571.59,0.00050059,120]
[340699743,1729695055027,-500.0,0.00050059,120]
[340699744,1729695055036,-500.0,0.00050059,120]
[340699745,1729695055045,-500.0,0.00050059,120]
[340699746,1729695055054,-500.0,0.00050059,120]
[340699747,1729695055063,-500.0,0.00050059,120]
[340699748,1729695055076,-500.0,0.00050059,120]
[340699749,1729695055085,-500.0,0.00050059,120]
[340699750,1729695055095,-500.0,0.00050059,120]
[340699751,1729695055103,-500.0,0.00050059,120]
[340699752,1729695055113,-500.0,0.00050059,120]
[340699753,1729695055122,-805.88,0.00050059,120]
[340699754,1729695055131,-525.45863623,0.00050059,120]
[340699755,1729695055141,-500.0,0.00050059,120]
[340699756,1729695055149,-500.0,0.00050059,120]
[340699757,1729695055159,-500.0,0.00050059,120]
[340699758,1729695055168,-850.0,0.00050059,120]
[340699759,1729695055178,-639.26,0.0005006,120]
[340699760,1729695055187,-583.75,0.0005006,120]
[340699761,1729695055196,-150.0,0.00050069,14]
[340699762,1729695055205,-500.0,0.0005007,120]
[340699763,1729695055214,-536.06251153,0.0005007,120]
[340699764,1729695055223,-531.47214493,0.0005007,120]
[340699765,1729695055233,-500.0,0.0005007,120]
[340699766,1729695055242,-500.0,0.0005007,120]
[340699767,1729695055251,-633.36,0.0005007,120]
[340699768,1729695055261,-674.13,0.0005007,120]
[340699769,1729695055270,-500.0,0.0005007,120]
[340699770,1729695055279,-1233.24,0.0005007,7]
[340699771,1729695055288,-500.0,0.0005007,120]
[340699772,1729695055297,-500.0,0.0005007,120]
[340699773,1729695055306,-500.0,0.0005007,120]
[340699774,1729695055316,-500.0,0.0005007,120]
[340699775,1729695055326,-500.0,0.0005007,120]
[340699776,1729695055335,-500.0,0.0005007,120]
[340699777,1729695055345,-500.0,0.0005007,120]
[340699778,1729695055355,-500.0,0.0005007,60]
[340699779,1729695055364,-500.0,0.0005007,120]
[340699780,1729695055374,-500.0,0.0005007,120]
[340699781,1729695055384,-500.0,0.0005007,120]
[340699782,1729695055393,-500.0,0.0005007,120]
[340699783,1729695055403,-500.0,0.0005007,120]
[340699784,1729695055412,-500.0,0.0005007,120]
[340699785,1729695055421,-500.0,0.0005007,120]
[340699786,1729695055431,-500.0,0.0005007,120]
[340699787,1729695055441,-500.0,0.0005007,120]
[340699788,1729695055450,-500.0,0.0005007,120]
[340699789,1729695055461,-500.0,0.0005007,120]
[340699790,1729695055470,-500.0,0.0005007,120]
[340699791,1729695055479,-500.0,0.0005007,120]
[340699792,1729695055489,-500.0,0.0005007,120]
[340699793,1729695055498,-500.0,0.0005007,120]
[340699794,1729695055508,-500.0,0.0005007,120]
[340699795,1729695055518,-500.0,0.0005007,120]
[340699796,1729695055527,-500.0,0.0005007,120]
[340699797,1729695055537,-500.0,0.0005007,120]
[340699798,1729695055546,-500.0,0.0005007,120]
[340699799,1729695055555,-623.29,0.0005007,120]
[340699800,1729695055565,-500.0,0.0005007,120]
[340699801,1729695055574,-500.0,0.0005007,120]
[340699802,1729695055583,-500.0,0.0005007,120]
[340699803,1729695055592,-631.05371431,0.0005007,120]
[340699804,1729695055601,-500.0,0.0005007,120]
[340699805,1729695055610,-500.0,0.0005007,2]
[340699806,1729695055619,-500.0,0.0005007,120]
[340699807,1729695055629,-500.0,0.0005007,120]
[340699808,1729695055638,-500.0,0.0005007,120]
[340699809,1729695055647,-500.0,0.0005007,120]
[340699810,1729695055656,-500.0,0.0005007,120]
[340699811,1729695055665,-639.26,0.0005007,120]
[340699812,1729695055674,-616.53,0.0005007,120]
[340699813,1729695055683,-219.18481853,0.0005007,120]
[340699814,1729695055692,-500.0,0.0005007,120]
[340699815,1729695055701,-500.0,0.0005007,120]
[340699816,1729695055710,-500.0,0.0005007,120]
[340699817,1729695055719,-500.0,0.0005007,120]
[340699818,1729695055729,-500.0,0.0005007,120]
[340699819,1729695055738,-500.0,0.0005007,120]
[340699820,1729695055747,-533.17,0.0005007,120]
[340699821,1729695055757,-500.0,0.0005007,2]
[340699822,1729695055767,-557.53,0.0005007,120]
[340699823,1729695055778,-500.0,0.0005007,2]
[340699824,1729695055790,-530.55456507,0.0005007,120]
[340699825,1729695055802,-500.0,0.0005007,120]
[340699826,1729695055813,-500.0,0.0005007,120]
[340699827,1729695055823,-500.0,0.0005007,120]
[340699828,1729695055832,-500.0,0.0005007,120]
[340699829,1729695055842,-500.0,0.0005007,120]
[340699830,1729695055852,-500.0,0.0005007,120]
[340699831,1729695055862,-500.0,0.0005007,120]
[340699832,1729695055871,-500.0,0.0005007,120]
[340699833,1729695055882,-500.0,0.0005007,120]
[340699834,1729695055891,-500.0,0.0005007,120]
[340699835,1729695055901,-512.5264953,0.0005007,120]
[340699836,1729695055910,-500.0,0.0005007,120]
[340699837,1729695055919,-500.0,0.0005007,120]
[340699838,1729695055929,-500.0,0.0005007,120]
[340699839,1729695055938,-500.0,0.0005007,120]
[340699840,1729695055948,-500.0,0.0005007,120]
[340699841,1729695055959,-500.0,0.0005007,120]
[340699842,1729695055968,-761.83,0.0005007,120]
[340699843,1729695055978,-500.0,0.0005007,120]
[340699844,1729695055988,-515.85924193,0.0005007,120]
[340699845,1729695055997,-500.0,0.0005007,120]
[340699846,1729695056007,-500.0,0.0005007,120]
[340699847,1729695056017,-500.0,0.0005007,120]
[340699848,1729695056028,-500.0,0.0005007,120]
[340699849,1729695056037,-500.0,0.0005007,120]
[340699850,1729695056046,-500.0,0.0005007,120]
[340699851,1729695056057,-500.0,0.0005007,120]
[340699852,1729695056067,-500.0,0.0005007,120]
[340699853,1729695056076,-500.0,0.0005007,120]
[340699854,1729695056085,-500.0,0.0005007,120]
[340699855,1729695056095,-500.0,0.0005007,120]
[340699856,1729695056104,-500.0,0.0005007,120]
[340699857,1729695056114,-1259.92,0.0005007,120]
[340699858,1729695056123,-500.0,0.0005007,120]
[340699859,1729695056132,-500.0,0.0005007,120]
[340699860,1729695056142,-500.0,0.0005007,120]
[340699861,1729695056152,-500.0,0.0005007,120]
[340699862,1729695056161,-500.0,0.0005007,120]
[340699863,1729695056170,-500.0,0.0005007,120]
[340699864,1729695056180,-500.0,0.0005007,120]
[340699865,1729695056189,-500.0,0.0005007,120]
[340699866,1729695056198,-500.0,0.0005007,120]
[340699867,1729695056208,-500.0,0.0005007,120]
[340699868,1729695056217,-500.0,0.0005007,120]
[340699869,1729695056226,-500.0,0.0005007,120]
[340699870,1729695056235,-458.24983237,0.0005007,120]
[340699871,1729695056244,-365.50570716,0.0005007,120]
[340699872,1729695056254,-500.0,0.0005007,120]
[340699873,1729695056263,-500.0,0.0005007,120]
[340699874,1729695056272,-500.0,0.0005007,120]
[340699875,1729695056282,-500.0,0.0005007,120]
[340699876,1729695056291,-500.0,0.0005007,120]
[340699877,1729695056301,-500.0,0.0005007,120]
[340699878,1729695056310,-583.75,0.0005007,120]
[340699879,1729695056320,-500.0,0.0005007,120]
[340699880,1729695056330,-500.0,0.0005007,120]
[340699881,1729695056339,-500.0,0.0005007,120]
[340699882,1729695056349,-500.0,0.0005007,120]
[340699883,1729695056359,-500.0,0.0005007,120]
[340699884,1729695056369,-500.0,0.0005007,120]
[340699885,1729695056379,-500.0,0.0005007,120]
[340699886,1729695056389,-591.95,0.0005007,120]
[340699887,1729695056399,-500.0,0.0005007,120]
[340699888,1729695056408,-500.0,0.0005007,120]
[340699889,1729695056418,-500.0,0.0005007,120]
[340699890,1729695056428,-1926.93,0.0005007,120]
[340699891,1729695056437,-500.0,0.0005007,120]
[340699892,1729695056447,-500.0,0.0005007,120]
[340699893,1729695056457,-512.93014417,0.0005007,120]
[340699894,1729695056466,-526.78559213,0.0005007,120]
[340699895,1729695056476,-500.0,0.0005007,120]
[340699896,1729695056486,-514.86588414,0.0005007,120]
[340699897,1729695056496,-1953.12,0.0005007,120]
[340699898,1729695056505,-500.0,0.0005007,120]
[340699899,1729695056514,-503.41427641,0.0005007,120]
[340699900,1729695056523,-1316.14,0.0005007,120]
[340699901,1729695056533,-551.53527386,0.0005007,120]
[340699902,1729695056542,-500.0,0.0005007,120]
[340699903,1729695056551,-513.64,0.0005007,120]
[340699904,1729695056561,-500.0,0.0005007,120]
[340699905,1729695056571,-530.32117083,0.0005007,120]
[340699906,1729695056579,-500.0,0.0005007,120]
[340699907,1729695056588,-1902.26,0.0005007,120]
[340699908,1729695056598,-500.0,0.0005007,120]
[340699909,1729695056608,-500.0,0.0005007,120]
[340699910,1729695056617,-699.33,0.0005007,120]
[340699911,1729695056627,-2403.72,0.0005007,120]
[340699912,1729695056637,-686.38,0.0005007,120]
[340699913,1729695056646,-500.0,0.0005007,120]
[340699914,1729695056655,-500.0,0.0005007,120]
[340699915,1729695056665,-326.55599955,0.0005007,120]
[340699916,1729695056674,-500.0,0.0005007,120]
[340699917,1729695056684,-631.69,0.0005007,120]
[340699918,1729695056694,-500.0,0.0005007,120]
[340699919,1729695056703,-2091.96,0.0005007,120]
[340699920,1729695056712,-549.51,0.0005007,120]
[340699921,1729695056722,-501.15,0.0005007,120]
[340699922,1729695056731,-523.81947221,0.0005007,120]
[340699923,1729695056741,-500.0,0.0005007,120]
[340699924,1729695056751,-2666.93,0.0005007,120]
[340699925,1729695056761,-638.13235347,0.0005007,120]
[340699926,1729695056772,-1895.2,0.0005007,120]
[340699927,1729695056784,-500.0,0.0005007,120]
[340699928,1729695056793,-500.0,0.0005007,120]
[340699929,1729695056803,-500.0,0.0005007,120]
[340699930,1729695056812,-500.0,0.0005007,120]
[340699931,1729695056824,-500.0,0.0005007,120]
[340699932,1729695056833,-639.01,0.0005007,120]
[340699933,1729695056842,-2056.13,0.0005007,120]
[340699934,1729695056851,-500.0,0.0005007,120]
[340699935,1729695056861,-739.87,0.0005007,120]
[340699936,1729695056870,-500.0,0.00050071,120]
[340699937,1729695056881,-500.0,0.00050071,120]
[340699938,1729695056890,-651.7,0.00050071,120]
[340699939,1729695056900,-500.0,0.00050071,120]
[340699940,1729695056910,-500.0,0.00050071,120]
[340699941,1729695056920,-500.0,0.00050071,120]
[340699942,1729695056930,-500.0,0.00050071,120]
[340699943,1729695056939,-500.0,0.00050071,120]
[340699944,1729695056949,-505.6,0.00050071,120]
[340699945,1729695056958,-531.83,0.00050071,120]
[340699946,1729695056969,-566.51212727,0.00050071,120]
[340699947,1729695056979,-500.0,0.00050071,120]
[340699948,1729695056989,-861.3,0.00050071,120]
[340699949,1729695057000,-645.91,0.00050071,120]
[340699950,1729695057010,-500.0,0.00050071,120]
[340699951,1729695057020,-1300.94,0.00050071,120]
[340699952,1729695057030,-2414.78,0.00050071,120]
[340699953,1729695057039,-500.0,0.00050071,120]
[340699954,1729695057050,-500.0,0.00050071,120]
[340699955,1729695057061,-500.0,0.00050071,120]
[340699956,1729695057072,-500.0,0.00050071,120]
[340699957,1729695057082,-478.25433325,0.00050071,120]
[340699958,1729695057092,-546.5617432,0.00050071,120]
[340699959,1729695057102,-500.0,0.00050071,120]
[340699960,1729695057112,-500.0,0.00050071,120]
[340699961,1729695057121,-500.0,0.00050071,120]
[340699962,1729695057131,-1666.47,0.00050071,120]
[340699963,1729695057141,-500.0,0.00050071,120]
[340699964,1729695057151,-522.87406526,0.00050071,120]
[340699965,1729695057161,-500.0,0.00050073,10]
[340699966,1729695057170,-500.0,0.00050073,10]
[340699967,1729695057180,-15812.93028412,0.00050077,15]
[340699968,1729695057190,-150.0,0.00050104,7]
[340699969,1729695057199,-150.0,0.00050128,7]
[340699970,1729695057209,-500.0,0.00050141,120]
[340699971,1729695057219,-1038.31,0.00050141,120]
[340699972,1729695057229,-500.0,0.00050141,120]
[340699973,1729695057238,-1396.2,0.00050141,120]
[340699974,1729695057247,-2499.88,0.00050141,120]
[340699975,1729695057257,-581.14,0.00050141,120]
[340699976,1729695057267,-500.0,0.00050141,120]
[340699977,1729695057277,-2403.29,0.00050141,120]
[340699978,1729695057287,-2393.31,0.00050141,120]
[340699979,1729695057296,-1078.45,0.00050141,120]
[340699980,1729695057306,-1462.44,0.00050141,120]
[340699981,1729695057317,-865.81,0.00050141,120]
[340699982,1729695057327,-596.71,0.00050141,120]
[340699983,1729695057337,-1434.43,0.00050141,120]
[340699984,1729695057347,-500.0,0.00050141,120]
[340699985,1729695057357,-539.87,0.00050141,120]
[340699986,1729695057367,-6123.06,0.00050141,120]
[340699987,1729695057377,-500.0,0.00050141,120]
[340699988,1729695057387,-500.0,0.00050141,120]
[340699989,1729695057398,-500.0,0.00050141,120]
[340699990,1729695057409,-500.0,0.00050142,120]
[340699991,1729695057420,-551.7,0.00050142,120]
[340699992,1729695057429,-500.0,0.00050142,120]
[340699993,1729695057439,-500.0,0.00050142,120]
[340699994,1729695057448,-500.0,0.00050142,120]
[340699995,1729695057458,-1279.4,0.00050142,120]
[340699996,1729695057467,-541.69,0.00050142,120]
[340699997,1729695057477,-500.0,0.00050142,120]
[340699998,1729695057487,-500.0,0.00050142,120]
[340699999,1729695057497,-500.0,0.00050142,120]
[340700000,1729695057507,-500.0,0.00050142,120]
[340700001,1729695057518,-500.0,0.00050142,120]
[340700002,1729695057528,-500.0,0.00050142,120]
[340700003,1729695057538,-500.0,0.00050142,120]
[340700004,1729695057548,-800.5,0.00050142,120]
[340700005,1729695057558,-829.74,0.00050142,120]
[340700006,1729695057569,-500.0,0.00050142,120]
[340700007,1729695057579,-500.0,0.00050142,120]
[340700008,1729695057590,-831.97,0.00050142,120]
[340700009,1729695057599,-500.0,0.00050142,120]
[340700010,1729695057610,-3068.62,0.00050142,120]
[340700011,1729695057619,-2062.02,0.00050142,120]
[340700012,1729695057629,-636.42,0.00050142,120]
[340700013,1729695057638,-500.0,0.00050142,120]
[340700014,1729695057648,-632.86,0.00050142,120]
[340700015,1729695057658,-500.0,0.00050142,120]
[340700016,1729695057667,-500.0,0.00050142,120]
[340700017,1729695057676,-521.15,0.00050142,120]
[340700018,1729695057687,-500.0,0.00050142,120]
[340700019,1729695057697,-500.0,0.00050142,120]
[340700020,1729695057706,-1010.38,0.00050142,120]
[340700021,1729695057716,-500.0,0.00050142,120]
[340700022,1729695057726,-500.0,0.00050142,120]
[340700023,1729695057735,-829.76,0.00050142,120]
[340700024,1729695057745,-710.82,0.00050142,120]
[340700025,1729695057755,-500.0,0.00050142,120]
[340700026,1729695057765,-500.0,0.00050142,120]
[340700027,1729695057774,-500.0,0.00050142,120]
[340700028,1729695057788,-500.0,0.00050142,120]
[340700029,1729695057798,-500.0,0.00050142,120]
[340700030,1729695057808,-500.0,0.00050142,120]
[340700031,1729695057818,-500.0,0.00050142,120]
[340700032,1729695057829,-500.0,0.00050142,120]
[340700033,1729695057839,-500.0,0.00050142,120]
[340700034,1729695057849,-373.17099876,0.00050142,120]
[340700035,1729695057861,-500.0,0.00050142,120]
[340700036,1729695057870,-500.0,0.00050142,120]
[340700037,1729695057880,-500.0,0.00050142,120]
[340700038,1729695057890,-2091.95,0.00050142,120]
[340700039,1729695057900,-153.042613,0.00050142,120]
[340700040,1729695057911,-152.467185,0.00050142,120]
[340700041,1729695057920,-285.083403,0.00050142,120]
[340700042,1729695057930,-162.58300023,0.00050142,120]
[340700043,1729695057939,-500.0,0.00050142,120]
[340700044,1729695057949,-500.0,0.00050142,120]
[340700045,1729695057959,-405.89748,0.00050142,120]
[340700046,1729695057969,-15318.09,0.00050142,120]
[340700047,1729695057979,-500.0,0.00050142,120]
[340700048,1729695057990,-500.0,0.00050142,120]
[340700049,1729695058000,-293.89479572,0.00050142,120]
[340700050,1729695058010,-696.58,0.00050142,120]
[340700051,1729695058020,-500.0,0.00050142,120]
[340700052,1729695058030,-500.0,0.00050142,120]
[340700053,1729695058039,-500.0,0.00050142,120]
[340700054,1729695058049,-500.0,0.00050142,120]
[340700055,1729695058060,-956.6,0.00050142,120]
[340700056,1729695058071,-500.0,0.00050142,120]
[340700057,1729695058081,-500.0,0.00050142,120]
[340700058,1729695058091,-500.0,0.00050142,120]
[340700059,1729695058101,-500.0,0.00050142,120]
[340700060,1729695058111,-1237.23,0.00050142,120]
[340700061,1729695058120,-500.0,0.00050142,120]
[340700062,1729695058131,-500.0,0.00050142,120]
[340700063,1729695058140,-500.0,0.00050142,120]
[340700064,1729695058150,-500.0,0.00050142,120]
[340700065,1729695058161,-500.0,0.00050142,120]
[340700066,1729695058170,-500.0,0.00050142,120]
[340700067,1729695058180,-500.0,0.00050142,120]
[340700068,1729695058190,-500.0,0.00050142,120]
[340700069,1729695058200,-5655.78,0.00050142,21]
[340700070,1729695058210,-500.0,0.00050142,120]
[340700071,1729695058220,-809.7907082,0.00050142,120]
[340700072,1729695058230,-500.0,0.00050142,120]
[340700073,1729695058240,-500.0,0.00050142,120]
[340700074,1729695058250,-500.0,0.00050142,120]
[340700075,1729695058260,-500.0,0.00050142,120]
[340700076,1729695058270,-500.0,0.00050142,120]
[340700077,1729695058280,-500.0,0.00050142,120]
[340700078,1729695058289,-500.0,0.00050142,120]
[340700079,1729695058299,-1801.94,0.00050142,120]
[340700080,1729695058309,-1551.48,0.00050142,120]
[340700081,1729695058319,-500.0,0.00050142,120]
[340700082,1729695058330,-2527.52,0.00050142,120]
[340700083,1729695058340,-946.91,0.00050142,120]
[340700084,1729695058350,-500.0,0.00050142,120]
[340700085,1729695058359,-1036.64,0.00050142,120]
[340700086,1729695058370,-500.0,0.00050142,120]
[340700087,1729695058379,-500.0,0.00050142,120]
[340700088,1729695058389,-2104.19,0.00050142,120]
[340700089,1729695058399,-500.0,0.00050142,120]
[340700090,1729695058409,-500.0,0.00050142,120]
[340700091,1729695058419,-500.0,0.00050142,120]
[340700092,1729695058430,-500.0,0.00050142,120]
[340700093,1729695058439,-514.44,0.00050142,120]
[340700094,1729695058449,-742.05,0.00050142,120]
[340700095,1729695058459,-500.0,0.00050143,120]
[340700096,1729695058469,-500.0,0.00050143,120]
[340700097,1729695058479,-152.88331003,0.00050143,120]
[340700098,1729695058490,-500.0,0.00050143,120]
[340700099,1729695058500,-500.0,0.00050143,120]
[340700100,1729695058510,-500.0,0.00050143,120]
[340700101,1729695058520,-546.83,0.00050143,120]
[340700102,1729695058530,-527.01,0.00050143,120]
[340700103,1729695058540,-633.57,0.00050143,120]
[340700104,1729695058550,-500.0,0.00050143,120]
[340700105,1729695058560,-500.0,0.00050143,120]
[340700106,1729695058572,-548.76,0.00050143,120]
[340700107,1729695058585,-500.0,0.00050143,120]
[340700108,1729695058595,-500.0,0.00050143,120]
[340700109,1729695058606,-263.82917725,0.00050143,120]
[340700110,1729695058615,-500.0,0.00050143,120]
[340700111,1729695058625,-500.0,0.00050143,120]
[340700112,1729695058635,-500.0,0.00050143,120]
[340700113,1729695058645,-500.0,0.00050143,120]
[340700114,1729695058655,-500.0,0.00050143,120]
[340700115,1729695058666,-500.0,0.00050143,120]
[340700116,1729695058676,-500.0,0.00050143,120]
[340700117,1729695058686,-552.51,0.00050143,120]
[340700118,1729695058696,-500.0,0.00050143,120]
[340700119,1729695058706,-500.0,0.00050143,120]
[340700120,1729695058716,-500.0,0.00050143,120]
[340700121,1729695058726,-1010.74,0.00050143,120]
[340700122,1729695058736,-226.36,0.00050143,120]
[340700123,1729695058746,-500.0,0.00050143,120]
[340700124,1729695058755,-500.0,0.00050143,120]
[340700125,1729695058765,-500.0,0.00050143,120]
[340700126,1729695058775,-500.0,0.00050143,120]
[340700127,1729695058789,-247.20819552,0.00050143,120]
[340700128,1729695058799,-664.87,0.00050143,120]
[340700129,1729695058809,-500.0,0.00050143,120]
[340700130,1729695058819,-500.0,0.00050143,120]
[340700131,1729695058829,-1025.87,0.00050143,120]
[340700132,1729695058839,-500.0,0.00050143,120]
[340700133,1729695058849,-500.0,0.00050143,120]
[340700134,1729695058858,-500.0,0.00050143,120]
[340700135,1729695058868,-500.0,0.00050143,120]
[340700136,1729695058878,-500.0,0.00050143,120]
[340700137,1729695058888,-500.0,0.00050143,120]
[340700138,1729695058898,-500.0,0.00050143,120]
[340700139,1729695058908,-500.0,0.00050143,120]
[340700140,1729695058918,-500.0,0.00050143,120]
[340700141,1729695058928,-500.0,0.00050143,120]
[340700142,1729695058938,-500.0,0.00050143,120]
[340700143,1729695058947,-500.0,0.00050143,120]
[340700144,1729695058957,-500.0,0.00050143,120]
[340700145,1729695058967,-588.83,0.00050143,120]
[340700146,1729695058977,-500.0,0.00050143,120]
[340700147,1729695058987,-2381.92,0.00050143,120]
[340700148,1729695058997,-500.0,0.00050143,120]
[340700149,1729695059007,-500.0,0.00050143,120]
[340700150,1729695059017,-1507.06,0.00050143,120]
[340700151,1729695059028,-500.0,0.00050143,120]
[340700152,1729695059038,-500.0,0.00050143,120]
[340700153,1729695059048,-500.0,0.00050143,120]
[340700154,1729695059058,-500.0,0.00050143,120]
[340700155,1729695059071,-3850.95,0.00050143,120]
[340700156,1729695059082,-500.0,0.00050143,120]
[340700157,1729695059299,-500.0,0.00050143,120]
[340700158,1729695059313,-500.0,0.00050143,120]
[340700159,1729695059324,-501.30141443,0.00050143,120]
[340700160,1729695059334,-500.0,0.00050143,120]
[340700161,1729695059344,-500.0,0.00050143,120]
[340700162,1729695059354,-500.0,0.00050143,120]
[340700163,1729695059363,-500.0,0.00050143,120]
[340700164,1729695059373,-618.02,0.00050143,120]
[340700165,1729695059382,-500.0,0.00050143,120]
[340700166,1729695059391,-500.0,0.00050143,120]
[340700167,1729695059400,-500.0,0.00050143,120]
[340700168,1729695059409,-279.38362589,0.00050143,120]
[340700169,1729695059419,-1937.11,0.00050143,120]
[340700170,1729695059428,-528.82482795,0.00050143,120]
[340700171,1729695059438,-2061.54,0.00050143,120]
[340700172,1729695059447,-500.0,0.00050143,120]
[340700173,1729695059456,-500.0,0.00050143,120]
[340700174,1729695059466,-2726.69,0.00050143,120]
[340700175,1729695059476,-500.0,0.00050143,120]
[340700176,1729695059486,-500.0,0.00050143,120]
[340700177,1729695059496,-500.0,0.00050143,120]
[340700178,1729695059506,-812.34,0.00050143,120]
[340700179,1729695059515,-500.0,0.00050143,120]
[340700180,1729695059525,-500.0,0.00050143,120]
[340700181,1729695059536,-840.01,0.00050143,120]
[340700182,1729695059545,-1694.03,0.00050143,120]
[340700183,1729695059555,-518.90294763,0.00050143,120]
[340700184,1729695059564,-1245.48,0.00050143,120]
[340700185,1729695059574,-500.0,0.00050143,120]
[340700186,1729695059584,-500.0,0.00050143,120]
[340700187,1729695059594,-500.0,0.00050143,120]
[340700188,1729695059603,-500.0,0.00050143,90]
[340700189,1729695059613,-1202.0,0.00050143,120]
[340700190,1729695059622,-2671.09,0.00050143,120]
[340700191,1729695059633,-500.0,0.00050143,120]
[340700192,1729695059644,-150.0,0.00050174,7]
[340700193,1729695059657,-150.0,0.000502,14]
[340700194,1729695059668,-150.0,0.00050205,7]
[340700195,1729695059678,-379.44241837,0.00050232,120]
[340700196,1729695059688,-500.0,0.00050243,120]
[340700197,1729695059698,-517.46,0.00050243,120]
[340700198,1729695059708,-500.0,0.00050243,120]
[340700199,1729695059717,-500.0,0.00050243,120]
[340700200,1729695059727,-500.0,0.00050243,120]
[340700201,1729695059736,-688.94,0.00050243,120]
[340700202,1729695059746,-3187.68,0.00050243,120]
[340700203,1729695059755,-720.0,0.00050243,120]
[340700204,1729695059765,-1671.38,0.00050243,120]
[340700205,1729695059774,-1870.15,0.00050243,120]
[340700206,1729695059788,-500.0,0.00050243,120]
[340700207,1729695059798,-548.44,0.00050243,120]
[340700208,1729695059808,-639.46,0.00050243,120]
[340700209,1729695059818,-500.0,0.00050243,120]
[340700210,1729695059828,-500.0,0.00050243,120]